lending/lending_fUSD_20251121
["ID","MTS","AMOUNT","RATE_DAILY","PERIOD"]
[394600211,1763747862668,-500.0,0.00053424,120]
[394600212,1763747862708,-707.79,0.00053424,120]
[394600213,1763747862747,-761.86,0.00053424,120]
[394600214,1763747862782,-500.0,0.00053424,120]
[394600215,1763747862818,-500.0,0.00053424,120]
[394600216,1763747862854,-984.62,0.00053424,120]
[394600217,1763747862891,-693.27,0.00053424,120]
[394600218,1763747862927,-500.0,0.00053424,120]
[394600219,1763747862964,-500.0,0.00053424,30]
[394600220,1763747863000,-500.0,0.00053424,120]
[394600221,1763747863039,-500.0,0.00053424,120]
[394600222,1763747863078,-1079.48,0.00053424,120]
[394600223,1763747863123,-500.0,0.00053424,120]
[394600224,1763747863162,-500.0,0.00053424,120]
[394600225,1763747863199,-500.0,0.00053424,120]
[394600226,1763747863237,-509.93048706,0.00053424,120]
[394600227,1763747863274,-832.22,0.00053424,120]
[394600228,1763747863313,-500.0,0.00053424,120]
[394600229,1763747863351,-906.02,0.00053424,120]
[394600230,1763747863388,-553.23,0.00053424,120]
[394600231,1763747863426,-592.29,0.00053424,120]
[394600232,1763747863465,-578.89783337,0.00053424,120]
[394600233,1763747863506,-500.0,0.00053424,120]
[394600234,1763747863552,-500.0,0.00053424,60]
[394600235,1763747863595,-827.73,0.00053424,30]
[394600236,1763747863639,-500.0,0.00053424,120]
[394600237,1763747863682,-500.0,0.00053424,120]
[394600238,1763747863725,-426.76905244,0.00053424,120]
[394600239,1763747863768,-1355.84,0.00053424,120]
[394600240,1763747863811,-500.0,0.00053424,120]
[394600241,1763747863853,-270.61834939,0.00053424,120]
[394600242,1763747863896,-736.06,0.00053424,120]
[394600243,1763747863938,-500.0,0.00053424,120]
[394600244,1763747863978,-500.0,0.00053424,120]
[394600245,1763747864015,-741.62,0.00053424,120]
[394600246,1763747864052,-500.0,0.00053424,120]
[394600247,1763747864093,-946.76,0.00053424,120]
[394600248,1763747864129,-500.0,0.00053424,120]
[394600249,1763747864164,-1462.58,0.00053424,120]
[394600250,1763747864202,-1132.61,0.00053424,120]
[394600251,1763747864243,-500.0,0.00053424,120]
[394600252,1763747864280,-500.0,0.00053424,120]
[394600253,1763747864317,-500.0,0.00053424,120]
[394600254,1763747864355,-500.0,0.00053424,120]
[394600255,1763747864394,-500.0,0.00053424,120]
[394600256,1763747864433,-1342.9,0.00053424,120]
[394600257,1763747864657,-720.54,0.00053424,120]
[394600258,1763747864704,-500.0,0.00053424,120]
[394600259,1763747864746,-500.0,0.00053424,120]
[394600260,1763747864788,-506.83364874,0.00053424,120]
[394600261,1763747864830,-500.0,0.00053424,120]
[394600262,1763747864874,-727.09,0.00053424,120]
[394600263,1763747864915,-500.0,0.00053424,120]
[394600264,1763747864959,-500.0,0.00053424,120]
[394600265,1763747865002,-819.94,0.00053424,120]
[394600266,1763747865045,-1000.0,0.00053424,120]
[394600267,1763747865086,-1107.01,0.00053424,120]
[394600268,1763747865135,-855.69,0.00053424,120]
[394600269,1763747865177,-416.57932441,0.00053424,120]
[394600270,1763747865220,-500.0,0.00053424,120]
[394600271,1763747865261,-769.88,0.00053424,120]
[394600272,1763747865306,-723.27,0.00053424,120]
[394600273,1763747865352,-500.0,0.00053424,120]
[394600274,1763747865396,-511.0784953,0.00053424,120]
[394600275,1763747865439,-500.0,0.00053424,120]
[394600276,1763747865479,-567.17554002,0.00053424,120]
[394600277,1763747865521,-1304.3,0.00053424,120]
[394600278,1763747865561,-500.0,0.00053424,120]
[394600279,1763747865599,-724.08,0.00053424,120]
[394600280,1763747865641,-950.48,0.00053424,120]
[394600281,1763747865682,-500.0,0.00053424,120]
[394600282,1763747865723,-500.0,0.00053424,120]
[394600283,1763747865763,-528.28,0.00053424,120]
[394600284,1763747865810,-500.0,0.00053424,120]
[394600285,1763747865851,-901.14,0.00053424,120]
[394600286,1763747865890,-500.0,0.00053424,120]
[394600287,1763747865928,-500.0,0.00053424,120]
[394600288,1763747865965,-1573.04,0.00053424,120]
[394600289,1763747866001,-500.0,0.00053424,120]
[394600290,1763747866038,-1203.66,0.00053424,120]
[394600291,1763747866075,-500.0,0.00053424,120]
[394600292,1763747866114,-500.0,0.00053424,120]
[394600293,1763747866152,-1601.91,0.00053424,120]
[394600294,1763747866188,-519.75982879,0.00053424,120]
[394600295,1763747866225,-500.0,0.00053424,120]
[394600296,1763747866263,-500.0,0.00053424,120]
[394600297,1763747866302,-666.68,0.00053424,120]
[394600298,1763747866342,-808.0,0.00053424,120]
[394600299,1763747866382,-500.0,0.00053424,120]
[394600300,1763747866422,-500.0,0.00053424,120]
[394600301,1763747866462,-516.31882222,0.00053424,120]
[394600302,1763747866502,-1603.08,0.00053424,120]
[394600303,1763747866543,-500.0,0.00053424,120]
[394600304,1763747866583,-500.0,0.00053424,120]
[394600305,1763747866626,-751.13,0.00053424,120]
[394600306,1763747866664,-500.0,0.00053424,120]
[394600307,1763747866701,-500.0,0.00053424,120]
[394600308,1763747866737,-509.38597953,0.00053424,120]
[394600309,1763747866775,-500.0,0.00053424,120]
[394600310,1763747866813,-763.27,0.00053424,120]
[394600311,1763747866868,-500.0,0.00053424,120]
[394600312,1763747866907,-571.84,0.00053424,120]
[394600313,1763747866955,-500.0,0.00053424,120]
[394600314,1763747867000,-500.0,0.00053424,120]
[394600315,1763747867045,-1309.95,0.00053424,120]
[394600316,1763747867091,-500.0,0.00053424,120]
[394600317,1763747867146,-500.0,0.00053424,120]
[394600318,1763747867201,-500.0,0.00053424,120]
[394600319,1763747867255,-804.84,0.00053424,120]
[394600320,1763747867301,-590.59,0.00053424,120]
[394600321,1763747867348,-500.0,0.00053424,120]
[394600322,1763747867394,-160.59398697,0.00053424,120]
[394600323,1763747867439,-500.0,0.00053424,120]
[394600324,1763747867482,-500.0,0.00053424,120]
[394600325,1763747867538,-649.35,0.00053424,120]
[394600326,1763747867588,-500.0,0.00053424,120]
[394600327,1763747867642,-1116.21,0.00053424,120]
[394600328,1763747867699,-500.0,0.00053424,120]
[394600329,1763747867751,-500.0,0.00053424,120]
[394600330,1763747867803,-547.76950063,0.00053424,120]
[394600331,1763747867850,-500.0,0.00053424,120]
[394600332,1763747867896,-500.0,0.00053424,120]
[394600333,1763747867943,-500.0,0.00053424,120]
[394600334,1763747867989,-981.19,0.00053424,60]
[394600335,1763747868033,-605.43,0.00053424,120]
[394600336,1763747868074,-941.61,0.00053424,120]
[394600337,1763747868114,-1341.05,0.00053424,120]
[394600338,1763747868153,-778.38,0.00053424,120]
[394600339,1763747868192,-500.0,0.00053424,120]
[394600340,1763747868231,-648.37,0.00053424,120]
[394600341,1763747868271,-500.0,0.00053424,120]
[394600342,1763747868529,-500.0,0.00053424,120]
[394600343,1763747868576,-824.18,0.00053424,120]
[394600344,1763747868619,-584.7881716,0.00053424,120]
[394600345,1763747868662,-500.0,0.00053424,120]
[394600346,1763747868703,-416.89436552,0.00053424,120]
[394600347,1763747868743,-936.91,0.00053424,120]
[394600348,1763747868782,-842.26,0.00053424,120]
[394600349,1763747868825,-500.0,0.00053424,120]
[394600350,1763747868870,-500.0,0.00053424,120]
[394600351,1763747868914,-500.0,0.00053424,120]
[394600352,1763747868956,-1178.99,0.00053424,120]
[394600353,1763747868997,-500.0,0.00053424,120]
[394600354,1763747869038,-869.45,0.00053424,120]
[394600355,1763747869079,-987.93,0.00053424,120]
[394600356,1763747869121,-500.0,0.00053424,120]
[394600357,1763747869159,-500.0,0.00053424,120]
[394600358,1763747869198,-293.8141518,0.00053424,120]
[394600359,1763747869235,-500.0,0.00053424,120]
[394600360,1763747869270,-500.0,0.00053424,120]
[394600361,1763747869306,-500.0,0.00053424,120]
[394600362,1763747869342,-500.0,0.00053424,120]
[394600363,1763747869378,-500.0,0.00053424,120]
[394600364,1763747869413,-810.32,0.00053424,120]
[394600365,1763747869452,-500.0,0.00053424,120]
[394600366,1763747869488,-1080.27,0.00053424,120]
[394600367,1763747869526,-693.56,0.00053424,120]
[394600368,1763747869569,-1946.82,0.00053424,120]
[394600369,1763747869609,-500.0,0.00053424,120]
[394600370,1763747869649,-500.0,0.00053424,120]
[394600371,1763747869688,-500.0,0.00053424,120]
[394600372,1763747869725,-500.0,0.00053424,120]
[394600373,1763747869762,-500.0,0.00053424,120]
[394600374,1763747869800,-708.1,0.00053424,120]
[394600375,1763747869835,-500.0,0.00053424,120]
[394600376,1763747869875,-992.78,0.00053424,120]
[394600377,1763747869916,-500.0,0.00053424,120]
[394600378,1763747869955,-508.5,0.00053424,120]
[394600379,1763747869994,-713.59,0.00053424,120]
[394600380,1763747870031,-500.0,0.00053424,120]
[394600381,1763747870068,-500.0,0.00053424,120]
[394600382,1763747870103,-500.0,0.00053424,120]
[394600383,1763747870139,-500.0,0.00053424,120]
[394600384,1763747870177,-1028.78,0.00053424,120]
[394600385,1763747870213,-881.59,0.00053424,120]
[394600386,1763747870250,-500.0,0.00053424,120]
[394600387,1763747870286,-500.0,0.00053424,120]
[394600388,1763747870325,-500.0,0.00053424,120]
[394600389,1763747870362,-562.57648889,0.00053424,120]
[394600390,1763747870399,-575.97,0.00053424,120]
[394600391,1763747870439,-1034.61,0.00053424,120]
[394600392,1763747870477,-1384.33,0.00053424,120]
[394600393,1763747870518,-500.0,0.00053424,120]
[394600394,1763747870557,-500.0,0.00053424,120]
[394600395,1763747870597,-500.0,0.00053424,120]
[394600396,1763747870638,-500.0,0.00053424,120]
[394600397,1763747870677,-781.65,0.00053424,120]
[394600398,1763747870717,-1450.24,0.00053424,120]
[394600399,1763747870752,-749.47,0.00053424,120]
[394600400,1763747870790,-510.67,0.00053424,120]
[394600401,1763747870825,-500.0,0.00053424,120]
[394600402,1763747870861,-500.0,0.00053424,120]
[394600403,1763747870899,-500.0,0.00053424,120]
[394600404,1763747870937,-500.0,0.00053424,120]
[394600405,1763747870975,-500.0,0.00053424,120]
[394600406,1763747871011,-500.0,0.00053424,120]
[394600407,1763747871047,-900.52,0.00053424,120]
[394600408,1763747871083,-500.0,0.00053424,120]
[394600409,1763747871126,-801.13,0.00053424,120]
[394600410,1763747871165,-500.0,0.00053424,120]
[394600411,1763747871203,-500.0,0.00053424,120]
[394600412,1763747871239,-251.8899136,0.00053424,120]
[394600413,1763747871278,-530.08,0.00053424,120]
[394600414,1763747871316,-500.0,0.00053424,120]
[394600415,1763747871352,-500.0,0.00053424,120]
[394600416,1763747871391,-529.37,0.00053424,120]
[394600417,1763747871430,-588.20025457,0.00053424,120]
[394600418,1763747871467,-529.99912084,0.00053424,120]
[394600419,1763747871504,-500.0,0.00053424,120]
[394600420,1763747871545,-179.57481513,0.00053424,120]
[394600421,1763747871582,-500.0,0.00053424,120]
[394600422,1763747871620,-2628.55,0.00053424,120]
[394600423,1763747871655,-534.62,0.00053424,120]
[394600424,1763747871846,-500.0,0.00053424,120]
[394600425,1763747871893,-161.96375804,0.00053424,120]
[394600426,1763747871936,-610.92,0.00053424,120]
[394600427,1763747871973,-500.0,0.00053424,120]
[394600428,1763747872009,-573.78,0.00053424,120]
[394600429,1763747872043,-582.27,0.00053424,120]
[394600430,1763747872079,-500.0,0.00053424,120]
[394600431,1763747872115,-688.14,0.00053424,120]
[394600432,1763747872153,-500.0,0.00053424,120]
[394600433,1763747872189,-500.0,0.00053424,120]
[394600434,1763747872228,-500.0,0.00053424,120]
[394600435,1763747872268,-605.96,0.00053424,120]
[394600436,1763747872304,-500.0,0.00053424,120]
[394600437,1763747872342,-500.0,0.00053424,120]
[394600438,1763747872381,-500.0,0.00053424,120]
[394600439,1763747872419,-1066.23,0.00053424,120]
[394600440,1763747872457,-500.0,0.00053424,120]
[394600441,1763747872493,-520.05747268,0.00053424,120]
[394600442,1763747872531,-500.0,0.00053424,120]
[394600443,1763747872572,-1001.2,0.00053424,120]
[394600444,1763747872615,-529.85880907,0.00053424,120]
[394600445,1763747872653,-696.75,0.00053424,120]
[394600446,1763747872691,-500.0,0.00053424,120]
[394600447,1763747872727,-500.0,0.00053424,120]
[394600448,1763747872762,-1029.84,0.00053424,120]
[394600449,1763747872798,-500.0,0.00053424,120]
[394600450,1763747872833,-500.0,0.00053424,120]
[394600451,1763747872870,-751.21,0.00053424,120]
[394600452,1763747872906,-1143.16,0.00053424,120]
[394600453,1763747872941,-500.0,0.00053424,120]
[394600454,1763747872981,-838.21,0.00053424,120]
[394600455,1763747873019,-1113.96,0.00053424,120]
[394600456,1763747873059,-605.89910046,0.00053424,120]
[394600457,1763747873097,-1397.82,0.00053424,120]
[394600458,1763747873135,-500.0,0.00053424,120]
[394600459,1763747873173,-500.0,0.00053424,120]
[394600460,1763747873210,-500.0,0.00053424,120]
[394600461,1763747873248,-1087.27,0.00053424,120]
[394600462,1763747873288,-1097.77,0.00053424,120]
[394600463,1763747873328,-500.0,0.00053424,120]
[394600464,1763747873380,-500.0,0.00053424,120]
[394600465,1763747873449,-541.57239062,0.00053424,120]
[394600466,1763747873521,-500.0,0.00053424,120]
[394600467,1763747873596,-500.0,0.00053424,120]
[394600468,1763747873667,-556.07809055,0.00053424,120]
[394600469,1763747873729,-500.0,0.00053424,120]
[394600470,1763747873785,-500.0,0.00053424,120]
[394600471,1763747873844,-603.17108756,0.00053424,120]
[394600472,1763747873902,-524.85786743,0.00053424,120]
[394600473,1763747873960,-500.0,0.00053424,120]
[394600474,1763747874018,-745.2,0.00053424,120]
[394600475,1763747874076,-500.0,0.00053424,120]
[394600476,1763747874136,-823.26,0.00053424,120]
[394600477,1763747874192,-509.74,0.00053424,120]
[394600478,1763747874248,-503.59,0.00053424,120]
[394600479,1763747874305,-500.0,0.00053424,120]
[394600480,1763747874358,-1132.92,0.00053424,120]
[394600481,1763747874412,-1039.18,0.00053424,120]
[394600482,1763747874463,-500.0,0.00053424,120]
[394600483,1763747874525,-644.23,0.00053424,120]
[394600484,1763747874585,-500.0,0.00053424,120]
[394600485,1763747874645,-500.0,0.00053424,120]
[394600486,1763747874702,-1146.28,0.00053424,120]
[394600487,1763747874756,-856.07,0.00053424,120]
[394600488,1763747874812,-160.41742995,0.00053424,120]
[394600489,1763747874869,-500.0,0.00053424,120]
[394600490,1763747874925,-500.0,0.00053424,120]
[394600491,1763747874981,-500.0,0.00053424,120]
[394600492,1763747875037,-500.0,0.00053424,120]
[394600493,1763747875093,-500.0,0.00053424,120]
[394600494,1763747875149,-348.56517376,0.00053424,120]
[394600495,1763747875206,-508.62412528,0.00053424,120]
[394600496,1763747875262,-1029.38,0.00053424,120]
[394600497,1763747875315,-734.53,0.00053424,120]
[394600498,1763747875370,-998.72,0.00053424,120]
[394600499,1763747875431,-500.0,0.00053424,120]
[394600500,1763747875488,-500.0,0.00053424,120]
[394600501,1763747875545,-1353.79,0.00053424,30]
[394600502,1763747875605,-500.0,0.00053424,120]
[394600503,1763747875664,-500.0,0.00053424,120]
[394600504,1763747875942,-1683.58,0.00053424,120]
[394600505,1763747875982,-500.0,0.00053424,120]
[394600506,1763747876022,-4331.94,0.00053424,120]
[394600507,1763747876060,-500.0,0.00053424,120]
[394600508,1763747876098,-525.01,0.00053424,120]
[394600509,1763747876137,-500.0,0.00053424,120]
[394600510,1763747876177,-500.0,0.00053424,120]
[394600511,1763747876217,-1471.29,0.00053424,120]
[394600512,1763747876258,-249.17322575,0.00053424,120]
[394600513,1763747876297,-500.0,0.00053424,120]
[394600514,1763747876335,-704.3,0.00053424,120]
[394600515,1763747876374,-500.0,0.00053424,120]
[394600516,1763747876411,-2472.18,0.00053424,120]
[394600517,1763747876448,-500.0,0.00053424,120]
[394600518,1763747876487,-1095.82,0.00053424,120]
[394600519,1763747876526,-562.31,0.00053424,120]
[394600520,1763747876565,-500.0,0.00053424,120]
[394600521,1763747876605,-500.0,0.00053424,120]
[394600522,1763747876647,-997.78,0.00053424,120]
[394600523,1763747876687,-500.0,0.00053424,120]
[394600524,1763747876726,-226.87750886,0.00053424,120]
[394600525,1763747876766,-500.0,0.00053424,120]
[394600526,1763747876803,-500.0,0.00053424,120]
[394600527,1763747876842,-500.0,0.00053424,120]
[394600528,1763747876881,-500.0,0.00053424,120]
[394600529,1763747876920,-725.52,0.00053424,120]
[394600530,1763747876957,-500.0,0.00053424,120]
[394600531,1763747876994,-500.0,0.00053424,120]
[394600532,1763747877033,-742.03,0.00053424,120]
[394600533,1763747877070,-604.03494435,0.00053424,120]
[394600534,1763747877106,-500.0,0.00053424,120]
[394600535,1763747877147,-1752.44,0.00053424,120]
[394600536,1763747877185,-500.0,0.00053424,120]
[394600537,1763747877226,-500.0,0.00053424,120]
[394600538,1763747877263,-500.0,0.00053424,120]
[394600539,1763747877299,-500.0,0.00053424,120]
[394600540,1763747877339,-523.83,0.00053424,120]
[394600541,1763747877378,-500.0,0.00053424,120]
[394600542,1763747877414,-500.0,0.00053424,120]
[394600543,1763747877453,-1610.76,0.00053424,120]
[394600544,1763747877490,-156.66836132,0.00053424,120]
[394600545,1763747877528,-500.0,0.00053424,120]
[394600546,1763747877570,-500.0,0.00053424,120]
[394600547,1763747877611,-500.0,0.00053424,120]
[394600548,1763747877652,-500.0,0.00053424,120]
[394600549,1763747877691,-1316.99,0.00053424,120]
[394600550,1763747877729,-526.62,0.00053424,120]
[394600551,1763747877768,-1262.41,0.00053424,120]
[394600552,1763747877809,-500.0,0.00053424,120]
[394600553,1763747877851,-624.9,0.00053424,120]
[394600554,1763747877890,-1077.55,0.00053424,120]
[394600555,1763747877928,-500.0,0.00053424,120]
[394600556,1763747877965,-511.18,0.00053424,120]
[394600557,1763747878003,-1189.13,0.00053424,120]
[394600558,1763747878043,-1015.18,0.00053424,120]
[394600559,1763747878084,-429.38392773,0.00053424,120]
[394600560,1763747878122,-731.57,0.00053424,120]
[394600561,1763747878161,-500.0,0.00053424,120]
[394600562,1763747878198,-500.0,0.00053424,120]
[394600563,1763747878243,-500.0,0.00053424,120]
[394600564,1763747878285,-500.0,0.00053424,120]
[394600565,1763747878328,-500.0,0.00053424,120]
[394600566,1763747878372,-239.11956446,0.00053424,120]
[394600567,1763747878416,-240.75827,0.0005343,120]
[394600568,1763747878458,-35000.0,0.0005349,120]
[394600569,1763747878501,-1232.94,0.00053685,90]
[394600570,1763747878549,-1232.94,0.00053685,90]
[394600571,1763747878596,-2000.0,0.00053698,30]
[394600572,1763747878649,-500.0,0.00053698,120]
[394600573,1763747878690,-500.0,0.00053698,120]
[394600574,1763747878730,-962.93218064,0.00053698,120]
[394600575,1763747878769,-500.0,0.00053698,120]
[394600576,1763747878810,-500.0,0.00053698,120]
[394600577,1763747878850,-500.0,0.00053698,120]
[394600578,1763747878894,-500.0,0.00053698,120]
[394600579,1763747878935,-500.0,0.00053698,120]
[394600580,1763747878970,-361.20355832,0.00053698,120]
[394600581,1763747879006,-500.0,0.00053698,120]
[394600582,1763747879046,-500.0,0.00053698,120]
[394600583,1763747879085,-500.0,0.00053698,120]
[394600584,1763747879123,-649.76,0.00053698,120]
[394600585,1763747879160,-1504.61,0.00053698,120]
[394600586,1763747879197,-1108.34,0.00053698,120]
[394600587,1763747879238,-500.0,0.00053698,120]
[394600588,1763747879526,-1186.86,0.00053698,120]
[394600589,1763747879570,-500.0,0.00053698,120]
[394600590,1763747879611,-500.0,0.00053698,120]
[394600591,1763747879654,-500.0,0.00053698,120]
[394600592,1763747879692,-500.0,0.00053698,120]
[394600593,1763747879731,-1259.12,0.00053698,120]
[394600594,1763747879771,-500.0,0.00053698,120]
[394600595,1763747879810,-500.0,0.00053698,120]
[394600596,1763747879849,-500.0,0.00053698,120]
[394600597,1763747879890,-500.0,0.00053698,120]
[394600598,1763747879935,-500.0,0.00053698,120]
[394600599,1763747879972,-987.47,0.00053698,120]
[394600600,1763747880008,-749.7,0.00053698,120]
[394600601,1763747880049,-500.0,0.00053698,120]
[394600602,1763747880092,-629.15999721,0.00053698,120]
[394600603,1763747880136,-500.0,0.00053698,120]
[394600604,1763747880179,-500.0,0.00053698,120]
[394600605,1763747880222,-500.0,0.00053698,120]
[394600606,1763747880266,-757.04,0.00053698,120]
[394600607,1763747880311,-500.0,0.00053698,120]
[394600608,1763747880352,-640.53,0.00053698,120]
[394600609,1763747880398,-500.0,0.00053698,120]
[394600610,1763747880440,-500.0,0.00053698,120]
[394600611,1763747880484,-500.0,0.00053698,120]
[394600612,1763747880530,-500.0,0.00053698,120]
[394600613,1763747880576,-606.66,0.00053698,120]
[394600614,1763747880622,-500.0,0.00053698,120]
[394600615,1763747880665,-500.0,0.00053698,120]
[394600616,1763747880710,-500.0,0.00053698,120]
[394600617,1763747880751,-500.0,0.00053698,120]
[394600618,1763747880793,-500.0,0.00053698,120]
[394600619,1763747880832,-844.19,0.00053698,120]
[394600620,1763747880873,-939.26,0.00053698,60]
[394600621,1763747880913,-500.0,0.00053698,120]
[394600622,1763747880954,-1476.41,0.00053698,120]
[394600623,1763747880993,-500.0,0.00053698,120]
[394600624,1763747881041,-885.49,0.00053698,120]
[394600625,1763747881094,-276.92739351,0.00053698,120]
[394600626,1763747881143,-226.85837964,0.00053698,120]
[394600627,1763747881189,-605.14,0.00053698,120]
[394600628,1763747881237,-500.0,0.00053698,120]
[394600629,1763747881285,-635.71,0.00053698,120]
[394600630,1763747881333,-500.0,0.00053698,120]
[394600631,1763747881380,-500.0,0.00053698,120]
[394600632,1763747881424,-886.24,0.00053698,120]
[394600633,1763747881467,-973.25,0.00053698,120]
[394600634,1763747881511,-910.07,0.00053698,120]
[394600635,1763747881562,-500.0,0.00053698,120]
[394600636,1763747881604,-512.76166898,0.00053698,120]
[394600637,1763747881650,-903.3,0.00053698,120]
[394600638,1763747881692,-500.0,0.00053698,120]
[394600639,1763747881741,-500.0,0.00053698,120]
[394600640,1763747881786,-500.0,0.00053698,120]
[394600641,1763747881832,-500.0,0.00053698,120]
[394600642,1763747881878,-931.08,0.00053698,120]
[394600643,1763747881923,-500.0,0.00053698,120]
[394600644,1763747881968,-500.0,0.00053698,120]
[394600645,1763747882013,-500.0,0.00053698,120]
[394600646,1763747882062,-677.66,0.00053698,120]
[394600647,1763747882114,-500.0,0.00053698,120]
[394600648,1763747882162,-500.0,0.00053698,120]
[394600649,1763747882213,-500.0,0.00053698,120]
[394600650,1763747882261,-1089.8,0.00053698,120]
[394600651,1763747882309,-600.17,0.00053698,120]
[394600652,1763747882357,-500.0,0.00053698,120]
[394600653,1763747882403,-500.0,0.00053698,120]
[394600654,1763747882444,-500.0,0.00053698,120]
[394600655,1763747882487,-528.23,0.00053698,120]
[394600656,1763747882536,-896.01,0.00053698,120]
[394600657,1763747882583,-1060.14,0.00053698,120]
[394600658,1763747882631,-853.65,0.00053698,120]
[394600659,1763747882677,-500.0,0.00053698,120]
[394600660,1763747882723,-1172.32,0.00053698,120]
[394600661,1763747882768,-892.68,0.00053698,120]
[394600662,1763747882812,-500.0,0.00053698,120]
[394600663,1763747882854,-683.37,0.00053698,120]
[394600664,1763747882899,-1066.61,0.00053698,120]
[394600665,1763747882942,-500.0,0.00053698,120]
[394600666,1763747882982,-1328.68,0.00053698,120]
[394600667,1763747883022,-500.0,0.00053698,120]
[394600668,1763747883063,-500.0,0.00053698,120]
[394600669,1763747883105,-604.26,0.00053698,120]
[394600670,1763747883370,-893.09,0.00053698,120]
[394600671,1763747883422,-500.0,0.00053698,120]
[394600672,1763747883474,-726.62,0.00053698,120]
[394600673,1763747883528,-1129.7,0.00053698,120]
[394600674,1763747883579,-500.0,0.00053698,120]
[394600675,1763747883633,-500.0,0.00053698,120]
[394600676,1763747883684,-500.0,0.00053698,120]
[394600677,1763747883731,-191.36984441,0.00053698,120]
[394600678,1763747883777,-500.0,0.00053698,120]
[394600679,1763747883824,-500.0,0.00053698,120]
[394600680,1763747883872,-549.88740342,0.00053698,120]
[394600681,1763747883918,-442.32739294,0.00053698,120]
[394600682,1763747883963,-500.0,0.00053698,120]
[394600683,1763747884009,-502.19,0.00053698,120]
[394600684,1763747884056,-500.0,0.00053698,120]
[394600685,1763747884104,-500.0,0.00053698,120]
[394600686,1763747884152,-742.48,0.00053698,120]
[394600687,1763747884200,-500.0,0.00053698,120]
[394600688,1763747884250,-1058.02,0.00053698,120]
[394600689,1763747884302,-500.0,0.00053698,120]
[394600690,1763747884351,-609.86,0.00053698,120]
[394600691,1763747884399,-500.0,0.00053698,120]
[394600692,1763747884447,-634.62,0.00053698,120]
[394600693,1763747884498,-500.0,0.00053698,120]
[394600694,1763747884546,-442.19560189,0.00053698,120]
[394600695,1763747884597,-500.0,0.00053698,120]
[394600696,1763747884646,-500.0,0.00053698,120]
[394600697,1763747884695,-859.12,0.00053698,120]
[394600698,1763747884741,-500.0,0.00053698,120]
[394600699,1763747884787,-500.0,0.00053698,120]
[394600700,1763747884833,-672.89,0.00053698,120]
[394600701,1763747884879,-500.0,0.00053698,120]
[394600702,1763747884928,-500.0,0.00053698,120]
[394600703,1763747884975,-419.31094572,0.00053698,120]
[394600704,1763747885023,-976.07,0.00053698,120]
[394600705,1763747885069,-1102.73,0.00053698,120]
[394600706,1763747885116,-500.0,0.00053698,120]
[394600707,1763747885165,-1200.73,0.00053698,120]
[394600708,1763747885212,-1000.34,0.00053698,120]
[394600709,1763747885259,-261.68000864,0.00053698,120]
[394600710,1763747885307,-1155.3,0.00053698,120]